bitfinex-derivatives/quotes_SOLF0:USTF0_20260204
["timestamp","ask_amount","ask_price","bid_price","bid_amount"]
[1770204124458,1.01262578,96.001,95.911,3.8738239]
[1770204124655,1.01262578,95.989,95.911,3.8738239]
[1770204124859,1.01262578,95.987,95.911,3.8738239]
[1770204125060,1.01262578,95.985,95.911,3.8738239]
[1770204125363,1.01262578,95.983,95.911,3.8738239]
[1770204125563,8.42487233,95.982,95.911,3.8738239]
[1770204125861,1.01262578,96.009,95.911,3.8738239]
[1770204126064,1.01262578,96.007,95.921,3.8738239]
[1770204126252,1.01262578,96.005,95.921,3.8738239]
[1770204126453,1.04331741,96.003,95.921,3.8738239]
[1770204126653,1.04331741,96.001,95.921,3.8738239]
[1770204126859,8.4292909,96.0,95.921,3.8738239]
[1770204127054,8.4292909,95.999,95.921,3.8738239]
[1770204127263,8.4292909,95.998,95.921,3.8738239]
[1770204127565,8.4292909,95.997,95.921,3.8738239]
[1770204127765,1.04331741,96.001,95.921,3.8738239]
[1770204127968,8.43077055,96.0,95.921,3.8738239]
[1770204128164,8.43077055,95.999,95.921,3.8738239]
[1770204128364,1.04331741,96.001,95.921,3.8738239]
[1770204128662,1.03056355,95.999,95.921,3.8738239]
[1770204129964,8.4314649,95.998,95.921,3.8738239]
[1770204130164,8.4314649,95.997,95.921,3.8738239]
[1770204130366,8.43145247,95.996,95.921,3.8738239]
[1770204130564,1.03056355,95.999,95.921,3.8738239]
[1770204130962,8.4340591,95.998,95.921,3.8738239]
[1770204131160,1.08012355,95.996,95.921,3.8738239]
[1770204131366,8.70011278,96.0,95.921,3.8738239]
[1770204131367,1.08012355,95.994,95.921,3.8738239]
[1770204131663,1.08012355,95.992,95.921,3.8738239]
[1770204131868,1.08012355,95.99,95.921,3.8738239]
[1770204132166,1.08012355,95.988,95.921,3.8738239]
[1770204132366,9.581354,95.987,95.921,3.8738239]
[1770204132557,8.4340591,95.986,95.921,3.8738239]
[1770204132762,8.4340591,95.985,95.921,3.8738239]
[1770204132962,8.4340591,95.984,95.921,3.8738239]
[1770204133162,8.4340591,95.983,95.921,3.8738239]
[1770204133358,8.4340591,95.982,95.921,3.8738239]
[1770204133564,8.4340591,95.981,95.921,3.8738239]
[1770204133763,8.4340591,95.98,95.921,3.8738239]
[1770204134065,1.1472949,95.978,95.921,3.8738239]
[1770204134260,8.4340591,95.977,95.921,3.8738239]
[1770204134458,8.4340591,95.976,95.921,3.8738239]
[1770204134663,8.4340591,95.975,95.921,3.8738239]
[1770204134862,1.1472949,95.978,95.921,3.8738239]
[1770204135058,8.43961011,95.977,95.921,3.8738239]
[1770204135361,8.43961011,95.976,95.921,3.8738239]
[1770204135562,1.1472949,95.978,95.921,3.8738239]
[1770204135758,8.423314,95.977,95.921,3.8738239]
[1770204135968,1.1472949,95.978,95.921,3.8738239]
[1770204136168,8.42240474,95.977,95.921,3.8738239]
[1770204136366,1.1235956,96.0,95.921,3.8738239]
[1770204136567,1.1235956,95.998,95.921,3.8738239]
[1770204136865,1.1235956,95.996,95.921,3.8738239]
[1770204137066,1.1235956,95.994,95.921,3.8738239]
[1770204137263,1.1235956,95.992,95.921,3.8738239]
[1770204137465,8.42337716,95.991,95.921,3.8738239]
[1770204137668,1.1235956,96.013,95.931,3.8738239]
[1770204137866,8.42910218,96.012,95.931,3.8738239]
[1770204138170,1.1235956,96.032,95.931,3.8738239]
[1770204138466,1.10156428,96.03,95.931,3.8738239]
[1770204138663,8.70011278,96.04,95.931,3.8738239]
[1770204138664,1.10156428,96.028,95.931,3.8738239]
[1770204138859,1.10156428,96.026,95.931,3.8738239]
[1770204139061,1.10156428,96.024,95.931,3.8738239]
[1770204139273,1.10156428,96.022,95.931,3.8738239]
[1770204139470,1.10156428,96.02,95.931,3.8738239]
[1770204139671,1.10156428,96.018,95.931,3.8738239]
[1770204139876,1.10156428,96.016,95.931,3.8738239]
[1770204140069,1.10156428,96.014,95.931,3.8738239]
[1770204140371,1.10156428,95.999,95.931,3.8738239]
[1770204140567,1.10175516,95.997,95.931,3.8738239]
[1770204140770,1.10175516,95.995,95.91,8.70011278]
[1770204141070,12.55349824,96.024,95.91,8.70011278]
[1770204141071,1.0955469,95.993,95.911,3.73818711]
[1770204141268,1.0955469,95.991,95.911,3.73818711]
[1770204141472,1.0955469,95.989,95.911,3.73818711]
[1770204141673,9.52500166,95.988,95.911,3.73818711]
[1770204141968,8.42945476,95.987,95.911,3.73818711]
[1770204142172,8.42945476,95.986,95.911,3.73818711]
[1770204142465,1.09147386,95.984,95.87,31.39]
[1770204142670,9.47817531,95.966,95.871,3.73818711]
[1770204142868,1.09147386,95.964,95.871,3.73818711]
[1770204143067,1.09147386,95.962,95.871,3.73818711]
[1770204143369,1.09147386,95.96,95.871,3.73818711]
[1770204143568,9.52092862,95.959,95.871,3.73818711]
[1770204143769,8.42945476,95.958,95.871,3.73818711]
[1770204143968,8.41528816,95.969,95.881,3.73818711]
[1770204144168,1.09147386,95.983,95.881,3.73818711]
[1770204144470,1.31103138,95.981,95.881,3.73818711]
[1770204144675,1.31103138,95.979,95.881,3.73818711]
[1770204144972,1.31103138,95.977,95.881,3.73818711]
[1770204145167,1.31103138,95.959,95.881,3.73818711]
[1770204145367,1.31103138,95.939,95.841,3.73818711]
[1770204145563,1.31103138,95.937,95.841,3.73818711]
[1770204145768,1.31103138,95.919,95.841,3.73818711]
[1770204145968,1.31103138,95.917,95.821,3.73818711]
[1770204146174,8.70011278,95.92,95.821,3.73818711]
[1770204146175,1.31103138,95.915,95.821,3.73818711]
[1770204146371,1.24360184,95.913,95.821,3.73818711]
[1770204146574,1.24360184,95.911,95.821,3.73818711]
[1770204146769,1.24360184,95.909,95.821,3.73818711]
[1770204146974,1.24360184,95.907,95.821,3.73818711]
[1770204147174,1.24360184,95.899,95.821,3.73818711]
[1770204151378,1.08461613,95.929,95.821,3.73818711]
[1770204151768,1.08461613,95.929,95.831,3.73818711]
[1770204153080,1.03270377,95.948,95.851,3.73818711]
[1770204157378,1.03270377,95.948,95.871,3.73818711]
[1770204157578,1.00165723,95.969,95.891,3.73818711]
[1770204158276,1.00165723,95.969,95.871,3.73818711]
[1770204159282,0.97451298,95.968,95.871,3.73818711]
[1770204159483,0.97451298,95.966,95.782,3.73818711]
[1770204159782,8.70581287,95.88,95.782,3.73818711]
[1770204159975,0.97451298,95.879,95.782,3.73818711]
[1770204161286,1.13207578,95.859,95.782,3.73818711]
[1770204161788,1.13207578,95.839,95.761,3.73818711]
[1770204166684,1.14514155,95.859,95.761,3.73818711]
[1770204170586,1.14514155,95.859,95.781,3.73818711]
[1770204172786,1.15096227,95.877,95.781,3.73818711]
[1770204173899,1.15096227,95.877,95.801,3.74984099]
[1770204174698,1.1454068,95.903,95.801,3.74984099]
[1770204175287,1.1454068,95.903,95.82,8.70581287]
[1770204175489,1.1454068,95.903,95.821,3.74984099]
[1770204179692,1.1651205,95.899,95.821,3.74984099]
[1770204180793,1.16150975,95.937,95.841,3.7097124]
[1770204180995,1.16150975,95.937,95.861,3.7097124]
[1770204181193,1.16150975,95.959,95.861,3.7097124]
[1770204181488,1.16150975,95.939,95.861,3.7097124]
[1770204183390,1.15399822,95.965,95.881,3.7097124]
[1770204186602,8.70581287,95.98,95.881,3.7097124]
[1770204186603,1.17980159,95.963,95.881,3.7097124]
[1770204187290,1.17980159,95.961,95.881,3.7097124]
[1770204187499,1.17980159,95.96,95.881,3.7097124]
[1770204188288,1.17980159,95.978,95.881,3.7097124]
[1770204189494,8.41476834,95.985,95.881,3.7097124]
[1770204189699,1.20886106,95.998,95.911,3.7097124]
[1770204189888,1.20886106,95.996,95.911,3.7097124]
[1770204190092,1.20886106,95.994,95.911,3.7097124]
[1770204190292,1.20886106,95.993,95.911,3.7097124]
[1770204191600,1.20886106,95.993,95.86,83.28]
[1770204191601,1.19738621,96.011,95.921,3.7097124]
[1770204193701,1.21718384,95.999,95.921,3.7097124]
[1770204194501,1.21718384,95.999,95.883,3.7097124]
[1770204195298,1.21718384,95.999,95.901,3.7097124]
[1770204198096,8.70581287,95.98,95.901,3.7097124]
[1770204198407,1.20520026,95.979,95.901,3.7097124]
[1770204199903,1.20520026,95.979,95.88,8.70581287]
[1770204199904,1.19848021,95.959,95.882,3.7097124]
[1770204203297,1.23402823,95.939,95.864,3.68266078]
[1770204205203,8.70581287,95.95,95.864,3.68266078]
[1770204206007,1.24694232,95.949,95.864,3.68266078]
[1770204206706,1.24254888,95.929,95.864,3.68266078]
[1770204209306,1.24254888,95.929,95.83,8.70581287]
[1770204209307,1.24254888,95.929,95.831,3.68266078]
[1770204213015,1.21256361,95.909,95.816,3.68266078]
[1770204213206,169.62,95.943,95.816,3.68266078]
[1770204213207,1.21256361,95.889,95.816,3.68266078]
[1770204215406,1.35702798,95.887,95.816,3.68266078]
[1770204215607,1.35702798,95.885,95.816,3.68266078]
[1770204215808,1.35702798,95.883,95.816,3.68266078]
[1770204216015,1.35702798,95.881,95.816,3.68266078]
[1770204216215,1.35702798,95.879,95.771,3.68266078]
[1770204216412,1.37339135,95.877,95.771,3.68266078]
[1770204216613,1.37339135,95.869,95.771,3.68266078]
[1770204216810,1.37339135,95.867,95.771,3.68266078]
[1770204217012,8.70581287,95.87,95.771,3.68266078]
[1770204217013,1.37339135,95.865,95.771,3.68266078]
[1770204217213,1.37339135,95.863,95.771,3.68266078]
[1770204217414,1.37339135,95.861,95.771,3.68266078]
[1770204218116,1.37339135,95.878,95.771,3.68266078]
[1770204218314,1.37339135,95.876,95.771,3.68266078]
[1770204218719,1.35425581,95.869,95.771,3.68266078]
[1770204220315,1.48560324,95.849,95.771,3.68266078]
[1770204220614,1.48560324,95.839,95.771,3.68266078]
[1770204221510,1.48560324,95.839,95.731,3.68266078]
[1770204221716,1.48560324,95.838,95.731,3.68266078]
[1770204222117,1.48560324,95.819,95.731,3.68266078]
[1770204223916,1.48560324,95.819,95.741,3.68266078]
[1770204225521,1.45728301,95.818,95.741,3.68266078]
[1770204226122,1.45728301,95.818,95.7,8.72867861]
[1770204226123,8.72867861,95.8,95.701,3.68266078]
[1770204226425,1.45728301,95.799,95.701,3.68266078]
[1770204232426,8.72867861,95.81,95.701,3.68266078]
[1770204232628,1.46229253,95.809,95.701,3.68266078]
[1770204234130,1.46229253,95.809,95.721,3.77468818]
[1770204238031,1.3117764,95.829,95.741,3.79089944]
[1770204239729,1.1956583,95.849,95.761,3.79089944]
[1770204242031,1.20624287,95.848,95.742,3.79089944]
[1770204242235,31.39,95.849,95.742,3.79089944]
[1770204242236,1.20624287,95.829,95.742,3.79089944]
[1770204242436,1.25112558,95.828,95.742,3.79089944]
[1770204242637,1.25112558,95.826,95.742,3.79089944]
[1770204247331,1.19546909,95.845,95.761,3.79089944]
[1770204248533,1.1841651,95.863,95.761,3.79089944]
[1770204248735,1.1841651,95.863,95.781,3.79089944]
[1770204250337,8.72867861,95.88,95.781,3.79089944]
[1770204250338,1.19818124,95.861,95.781,3.79089944]
[1770204250536,1.19818124,95.859,95.781,3.79089944]
[1770204251042,1.19818124,95.856,95.741,3.79089944]
[1770204251235,1.19818124,95.853,95.741,3.79089944]
[1770204251543,1.19818124,95.85,95.741,3.79089944]
[1770204251838,1.19818124,95.847,95.741,3.79089944]
[1770204252139,1.19818124,95.838,95.741,3.79089944]
[1770204252335,1.19818124,95.835,95.741,3.79089944]
[1770204252536,1.21866798,95.833,95.741,3.79089944]
[1770204252738,1.21866798,95.831,95.741,3.79089944]
[1770204252938,1.21866798,95.829,95.741,3.79089944]
[1770204253134,1.21866798,95.827,95.741,3.79089944]
[1770204253338,1.21866798,95.825,95.741,3.79089944]
[1770204254340,8.38568631,95.824,95.741,3.79089944]
[1770204254641,8.38568631,95.823,95.741,3.79089944]
[1770204254944,1.21866798,95.825,95.741,3.79089944]
[1770204255144,1.21866798,95.825,95.761,3.79089944]
[1770204255841,1.21314743,95.844,95.761,3.79089944]
[1770204256144,1.21314743,95.842,95.761,3.79089944]
[1770204256346,9.64700833,95.841,95.761,3.79089944]
[1770204256548,8.3655815,95.84,95.761,3.79089944]
[1770204256746,8.3655815,95.839,95.761,3.79089944]
[1770204256947,8.3655815,95.838,95.761,3.79089944]
[1770204257146,8.3655815,95.837,95.761,3.79089944]
[1770204257347,8.3655815,95.836,95.761,3.79089944]
[1770204257547,8.3655815,95.835,95.761,3.79089944]
[1770204257746,8.3655815,95.834,95.761,3.79089944]
[1770204257943,8.3655815,95.833,95.761,3.79089944]
[1770204258147,1.28142683,95.858,95.761,3.79089944]
[1770204258347,8.3838974,95.857,95.761,3.79089944]
[1770204258544,1.29275099,95.855,95.761,3.79089944]
[1770204258745,8.3838974,95.854,95.761,3.79089944]
[1770204258940,8.3838974,95.853,95.761,3.79089944]
[1770204259248,8.3838974,95.852,95.781,3.79089944]
[1770204259443,1.29275099,95.855,95.781,3.79089944]
[1770204259444,8.3838974,95.851,95.781,3.79089944]
[1770204259649,8.3838974,95.85,95.781,3.79089944]
[1770204259948,8.3838974,95.849,95.781,3.79089944]
[1770204260149,8.3838974,95.848,95.781,3.79089944]
[1770204260343,8.3838974,95.847,95.781,3.79089944]
[1770204260545,8.3838974,95.846,95.781,3.79089944]
[1770204260746,8.3838974,95.845,95.781,3.79089944]
[1770204260944,8.3838974,95.844,95.781,3.79089944]
[1770204261140,1.23837104,95.865,95.801,3.95419523]
[1770204261340,8.72867861,95.9,95.76,8.72867861]
[1770204261341,9.524141,95.895,95.821,3.95419523]
[1770204261542,1.23837104,95.893,95.821,3.95419523]
[1770204261750,1.23837104,95.891,95.821,3.95419523]
[1770204261946,1.23837104,95.889,95.821,3.95419523]
[1770204262245,1.23837104,95.887,95.821,3.95419523]
[1770204262445,1.21857013,95.885,95.821,3.95419523]
[1770204262950,1.21857013,95.908,95.821,3.95419523]
[1770204263242,9.60384406,95.907,95.821,3.95419523]
[1770204263450,8.38527393,95.906,95.821,3.95419523]
[1770204263648,1.21857013,95.907,95.821,3.95419523]
[1770204263649,8.38527393,95.905,95.821,3.95419523]
[1770204263850,8.38527393,95.904,95.821,3.95419523]
[1770204264148,8.38527393,95.903,95.821,3.95419523]
[1770204264345,8.38527393,95.902,95.821,3.95419523]
[1770204264542,8.38527393,95.901,95.821,3.95419523]
[1770204264744,1.21857013,95.907,95.821,3.95419523]
[1770204264942,8.37466226,95.906,95.821,3.95419523]
[1770204265148,8.37466226,95.905,95.821,3.95419523]
[1770204265343,1.23418213,95.906,95.821,3.95419523]
[1770204265344,8.37466226,95.904,95.821,3.95419523]
[1770204265550,1.23418213,95.906,95.821,3.95419523]
[1770204265751,9.60612253,95.905,95.821,3.95419523]
[1770204265950,8.3719404,95.904,95.821,3.95419523]
[1770204266248,1.23418213,95.905,95.821,3.95419523]
[1770204269748,8.36662225,95.917,95.821,3.95419523]
[1770204269947,8.36662225,95.933,95.861,3.95419523]
[1770204270149,1.22205652,95.949,95.861,3.95419523]
[1770204271754,8.72867861,95.98,95.83,8.72867861]
[1770204271755,1.38815353,95.992,95.881,3.95419523]
[1770204272654,1.38815353,95.992,95.901,3.95419523]
[1770204272855,1.39751911,95.979,95.901,3.95419523]
[1770204274763,1.17281231,95.959,95.861,3.95419523]
[1770204278464,1.17281231,95.959,95.881,3.95419523]
[1770204283158,1.32661416,96.002,95.901,3.95419523]
[1770204283360,1.32661416,96.002,95.921,3.95419523]
[1770204283568,1.32661416,95.999,95.921,3.95419523]
[1770204287366,1.06563797,96.061,95.961,3.95419523]
[1770204287667,1.06563797,96.061,95.971,3.95419523]
[1770204291571,164.16,96.071,95.971,3.95419523]
[1770204291772,0.92283891,96.083,95.991,3.89636807]
[1770204291967,84.14283891,96.083,95.991,3.89636807]
[1770204292166,0.92283891,96.083,95.991,3.89636807]
[1770204292874,83.22,96.086,95.991,3.89636807]
[1770204292875,0.9305914,96.081,95.991,3.89636807]
[1770204293276,164.4305914,96.081,95.991,3.89636807]
[1770204293477,0.9305914,96.08,95.991,3.89636807]
[1770204295479,83.2,96.079,95.991,3.89636807]
[1770204296678,1.81207529,96.104,96.011,3.89636807]
[1770204296879,0.78671244,96.103,96.011,3.89636807]
[1770204298583,0.76624229,96.101,96.011,3.89636807]
[1770204298987,0.76624229,96.1,96.011,3.89636807]
[1770204299187,0.76624229,96.089,96.011,3.89636807]
[1770204299383,0.76624229,96.087,96.011,3.89636807]
[1770204300389,0.87138559,96.085,96.011,3.89636807]
[1770204301288,0.87138559,96.083,96.011,3.89636807]
[1770204301492,0.87138559,96.083,95.981,3.95192519]
[1770204302393,8.70531579,96.09,95.981,3.95192519]
[1770204302394,0.8877604,96.081,95.981,3.95192519]
[1770204302593,0.8877604,96.079,95.981,3.95192519]
[1770204303291,0.8877604,96.077,95.981,3.95192519]
[1770204303494,1.81202812,96.124,95.921,31.39]
[1770204303495,0.8877604,96.095,96.001,3.95192519]
[1770204303790,8.70531579,96.12,96.001,3.95192519]
[1770204303791,0.8877604,96.093,96.001,3.95192519]
[1770204304992,0.83888873,96.141,96.041,3.95192519]
[1770204305186,0.83888873,96.16,96.061,3.95192519]
[1770204305390,2.51277118,96.122,96.061,3.95192519]
[1770204306196,31.39,96.149,96.04,8.70531579]
[1770204306197,9.524141,96.215,96.081,3.95192519]
[1770204306395,3.74451207,96.251,96.161,2.51217618]
[1770204306588,8.70531579,96.32,96.161,2.51217618]
[1770204306589,3.74451207,96.239,96.161,2.51217618]
[1770204306795,3.74451207,96.209,96.121,2.51217618]
[1770204307296,132.58,96.208,96.121,2.51217618]
[1770204307496,3.74451207,96.189,96.121,2.51217618]
[1770204307692,8.70531579,96.24,96.121,2.51217618]
[1770204307693,8.70531579,96.2,96.121,2.51217618]
[1770204307892,3.74451207,96.199,96.121,2.51217618]
[1770204308198,3.74451207,96.199,95.95,10.43]
[1770204308199,3.74451207,96.179,96.099,2.51217618]
[1770204308392,3.74451207,96.159,96.079,2.73183136]
[1770204308593,3.74451207,96.196,96.079,2.73183136]
[1770204308893,12.44982786,96.18,96.079,2.73183136]
[1770204309095,8.70531579,96.18,96.079,2.73183136]
[1770204309290,8.70531579,96.25,96.04,40.09531579]
[1770204309291,42.12909456,96.219,96.074,83.14]
[1770204309494,42.12909456,96.199,96.09,8.70531579]
[1770204310996,50.89229781,96.22,96.11,8.70531579]
[1770204311192,50.89229781,96.24,96.13,8.70531579]
[1770204311500,8.70531579,96.26,96.15,8.70531579]
[1770204311795,42.18698202,96.296,96.17,8.70531579]
[1770204311996,18.71027648,96.393,96.116,83.12]
[1770204311997,42.18698202,96.318,96.23,8.70531579]
[1770204312393,42.18698202,96.318,96.21,8.70531579]
[1770204314097,42.18698202,96.318,96.154,31.39]
[1770204314098,42.15050027,96.299,96.19,8.70531579]
[1770204314394,42.15050027,96.327,96.23,8.70531579]
[1770204314788,42.15050027,96.327,96.181,31.39]
[1770204314992,42.15050027,96.327,96.22,8.70531579]
[1770204315396,42.13790014,96.319,96.22,8.70531579]
[1770204316798,42.15449744,96.299,96.19,8.70531579]
[1770204318097,42.15449744,96.32,96.23,8.70531579]
[1770204318402,42.15449744,96.342,96.25,8.70531579]
[1770204319301,42.15777555,96.389,96.29,8.70531579]
[1770204319494,42.15777555,96.389,96.234,83.02]
[1770204319495,43.54751873,96.527,96.33,8.70531579]
[1770204319693,8.70531579,96.45,96.34,60.70531579]
[1770204319897,8.70531579,96.43,96.33,8.70531579]
[1770204320104,52.25283452,96.43,96.321,83.02]
[1770204320398,43.54751873,96.43,96.33,8.70531579]
[1770204320802,43.54955902,96.455,96.35,8.70531579]
[1770204321096,43.54955902,96.517,96.39,8.70531579]
[1770204321307,43.54955902,96.545,96.42,8.70531579]
[1770204321599,18.49672985,96.742,96.391,83.0]
[1770204321600,43.54955902,96.564,96.46,8.70531579]
[1770204321803,8.70531579,96.55,96.391,83.0]
[1770204321995,8.70531579,96.56,96.46,8.70531579]
[1770204322300,43.63445991,96.615,96.5,8.70531579]
[1770204322494,207.94,96.743,96.461,83.0]
[1770204322495,43.63445991,96.645,96.55,8.70531579]
[1770204322695,8.70531579,96.61,96.49,8.70531579]
[1770204322893,46.09891911,96.589,96.48,8.70531579]
[1770204323097,8.70531579,96.57,96.46,8.70531579]
[1770204323301,54.8042349,96.57,96.46,8.70531579]
[1770204323698,46.09891911,96.529,96.43,8.70531579]
[1770204323900,46.09891911,96.538,96.39,8.70531579]
[1770204324295,46.09891911,96.499,96.38,8.70531579]
[1770204324497,46.23012728,96.479,96.36,8.70531579]
[1770204324697,8.70531579,96.46,96.36,8.70531579]
[1770204324898,46.23012728,96.479,96.36,8.70531579]
[1770204325099,46.23012728,96.479,96.346,82.92]
[1770204325100,46.23012728,96.479,96.4,8.70531579]
[1770204325408,46.23012728,96.499,96.41,8.70531579]
[1770204325607,8.70531579,96.6,96.311,207.84]
[1770204325608,46.23012728,96.529,96.43,8.70531579]
[1770204325813,46.23012728,96.556,96.47,8.70531579]
[1770204326202,46.23012728,96.589,96.49,8.70531579]
[1770204326502,46.14590961,96.609,96.51,8.70531579]
[1770204326697,54.8512254,96.59,96.48,8.70531579]
[1770204327103,46.14590961,96.785,96.58,8.70531579]
[1770204327300,46.14590961,96.749,96.541,31.39]
[1770204327501,54.8512254,96.71,96.54,8.70531579]
[1770204327803,54.8512254,96.71,96.472,207.72]
[1770204327804,46.14590961,96.71,96.472,207.72]
[1770204328007,8.70531579,96.66,96.54,8.70531579]
[1770204328207,46.14590961,96.679,96.54,8.70531579]
[1770204328509,46.08009421,96.645,96.518,82.86]
[1770204328709,46.08009421,96.645,96.519,82.86]
[1770204328911,46.08009421,96.645,96.472,207.72]
[1770204329104,22.53521784,96.72,96.36,22.53521784]
[1770204329105,46.08009421,96.619,96.48,52.0]
[1770204329310,46.08009421,96.619,96.463,82.86]
[1770204329506,46.08009421,96.619,96.47,22.53521784]
[1770204330200,46.08009421,96.589,96.44,22.53521784]
[1770204330401,46.42885073,96.559,96.41,22.53521784]
[1770204330607,46.42885073,96.559,96.411,82.82]
[1770204330806,46.42885073,96.559,96.41,22.53521784]
[1770204331007,46.42885073,96.529,96.4,82.82]
[1770204331701,22.53521784,96.5,96.38,22.53521784]
[1770204331907,46.42885073,96.499,96.38,82.82]
[1770204332105,46.42885073,96.469,96.321,31.12]
[1770204332305,22.53521784,96.49,96.35,22.53521784]
[1770204332510,46.42651645,96.571,96.43,22.53521784]
[1770204332711,46.42651645,96.571,96.431,82.8]
[1770204332905,46.42651645,96.549,96.4,22.53521784]
[1770204333302,22.53521784,96.55,96.383,83.08]
[1770204333303,46.42651645,96.519,96.383,83.08]
[1770204333909,46.42651645,96.519,96.371,31.12]
[1770204334110,46.42651645,96.519,96.372,83.1]
[1770204334311,46.42651645,96.519,96.373,83.1]
[1770204336013,46.42651645,96.519,96.4,22.53521784]
[1770204336406,22.53521784,96.55,96.4,22.53521784]
[1770204336613,46.43079659,96.549,96.401,82.78]
[1770204336805,46.43079659,96.549,96.43,22.53521784]
[1770204337505,46.43079659,96.549,96.41,82.78]
[1770204337906,46.43079659,96.539,96.41,82.78]
[1770204338816,46.42903847,96.536,96.41,82.78]
[1770204339312,46.42903847,96.536,96.391,83.18]
[1770204340510,46.42706602,96.522,96.391,83.18]
[1770204340810,46.42706602,96.509,96.391,83.18]
[1770204341011,46.42706602,96.501,96.34,22.53521784]
[1770204341218,46.42706602,96.492,96.34,105.71521784]
[1770204341710,46.42706602,96.479,96.34,105.71521784]
[1770204342011,31.12,96.47,96.327,83.22]
[1770204342313,46.42706602,96.465,96.327,83.22]
[1770204343207,46.41392742,96.462,96.327,83.22]
[1770204344017,46.41392742,96.449,96.327,83.22]
[1770204344213,46.41392742,96.441,96.241,31.12]
[1770204344413,46.4018896,96.419,96.28,33.96048754]
[1770204345019,46.4018896,96.419,96.281,82.78]
[1770204346208,46.4018896,96.419,96.29,52.0]
[1770204346415,46.4018896,96.419,96.291,83.4]
[1770204348020,46.41501688,96.412,96.28,33.96048754]
[1770204348215,46.41501688,96.389,96.23,31.12]
[1770204348421,46.41501688,96.389,96.25,33.96048754]
[1770204349113,46.42154073,96.383,96.25,33.96048754]
[1770204349316,46.42154073,96.382,96.241,82.8]
[1770204349512,46.42154073,96.372,96.241,82.8]
[1770204351317,46.42154073,96.372,96.242,83.74]
[1770204352114,46.42154073,96.372,96.24,33.96048754]
[1770204352321,46.41345996,96.359,96.24,33.96048754]
[1770204354819,46.41345996,96.359,96.27,33.96048754]
[1770204355022,46.41684095,96.385,96.27,33.96048754]
[1770204355414,46.41684095,96.385,96.3,33.96048754]
[1770204355725,46.41684095,96.385,96.301,82.84]
[1770204356625,46.41684095,96.385,96.302,84.0]
[1770204357325,46.41684095,96.385,96.27,33.96048754]
[1770204357528,46.41684095,96.385,96.271,84.02]
[1770204358419,46.41684095,96.385,96.272,84.08]
[1770204359222,46.41684095,96.385,96.27,33.96048754]
[1770204360026,31.12,96.366,96.24,33.96048754]
[1770204360324,46.41842986,96.362,96.24,33.96048754]
[1770204360525,46.41842986,96.362,96.241,82.86]
[1770204360731,46.41842986,96.362,96.242,84.22]
[1770204361123,46.41842986,96.362,96.24,33.96048754]
[1770204361729,46.41842986,96.362,96.27,33.96048754]
[1770204361933,46.41842986,96.362,96.271,82.86]
[1770204363227,46.40973113,96.408,96.271,82.86]
[1770204363628,46.40973113,96.408,96.27,33.96048754]
[1770204363924,46.40973113,96.408,96.271,84.42]
[1770204365130,46.40917403,96.432,96.33,33.96048754]
[1770204365433,46.40917403,96.432,96.331,84.46]
[1770204367434,46.40917403,96.432,96.331,84.84]
[1770204370434,46.40917403,96.432,96.35,8.61708377]
[1770204371731,46.40917403,96.432,96.331,84.84]
[1770204373631,46.36411232,96.429,96.31,8.61708377]
[1770204374240,31.12,96.428,96.31,8.61708377]
[1770204374441,31.12,96.424,96.31,8.61708377]
[1770204374636,46.37340988,96.422,96.31,8.61708377]
[1770204374835,46.37340988,96.389,96.18,8.61708377]
[1770204375040,46.37340988,96.369,96.27,8.61708377]
[1770204377140,46.37340988,96.369,96.25,8.61708377]
[1770204377141,46.37340988,96.369,96.29,8.61708377]
[1770204378736,46.38460944,96.392,96.31,8.61708377]
[1770204381050,46.38460944,96.392,96.19,52.0]
[1770204381251,46.38646982,96.389,96.28,8.61708377]
[1770204381451,46.38646982,96.387,96.28,8.61708377]
[1770204381647,46.38646982,96.385,96.28,8.61708377]
[1770204381847,46.38646982,96.383,96.28,8.61708377]
[1770204382046,46.38646982,96.381,96.28,8.61708377]
[1770204382248,46.38646982,96.379,96.28,8.61708377]
[1770204382443,46.38646982,96.377,96.28,8.61708377]
[1770204382649,46.38646982,96.375,96.28,8.61708377]
[1770204382850,46.38646982,96.373,96.28,8.61708377]
[1770204383154,46.38646982,96.371,96.28,8.61708377]
[1770204383352,46.38646982,96.369,96.28,8.61708377]
[1770204383554,46.38592073,96.367,96.28,8.61708377]
[1770204383957,46.38592073,96.365,96.28,8.61708377]
[1770204384150,46.38592073,96.363,96.28,8.61708377]
[1770204384352,46.38592073,96.361,96.28,8.61708377]
[1770204384554,46.38592073,96.359,96.28,8.61708377]
[1770204385057,46.38592073,96.357,96.28,8.61708377]
[1770204385353,46.38592073,96.355,96.28,8.61708377]
[1770204385554,46.30322071,96.353,96.28,8.61708377]
[1770204385745,46.30322071,96.351,96.28,8.61708377]
[1770204386555,46.30322071,96.351,96.245,82.86]
[1770204386556,46.30322071,96.392,96.3,8.61708377]
[1770204389157,46.30322071,96.392,96.32,8.61708377]
[1770204391459,46.30322071,96.392,96.25,8.61708377]
[1770204391460,46.30322071,96.392,96.3,8.61708377]